Cogmind - Beta 15 *** ADVENTURER MODE // 2025.05.31 @ 01:16:00 Player: Gder Result: Self-destructed Performance ------------- Evolutions (4) 2000 Regions Visited (4) 800 Robots Destroyed (18) 90 Value Destroyed (393) 393 Prototype IDs (19) 380 Alien Tech Used (0) 0 Bonus (720) 720 TOTAL SCORE: 4383 Bonus ------- Registered with UFD 300 Met Optimus in HQ 500 Friendly Fire -80 Cogmind --------- Core Integrity 645/850 Matter 176/300 Energy 100/100 System Corruption 1% Temperature Cool (0) Movement Core (700) Ox13 Location -6/Factory Parts ------- > --- POWER (2) -------- (None) > --- PROPULSION (4) --- Armored Leg > --- UTILITY (7) ------ High-capacity Storage Unit System Shield A0-MCA's Component Scanner Trap Extractor (0/4) > --- WEAPON (2) ------- (None) > --- INVENTORY (20) --- Improved Medium Treads Improved Medium Treads Scrap Suit Improved Medium Armor Plating Makeshift Hacking Suite Improved Hacking Suite Scrapoid Pod Assault Rifle High-powered Shotgun Heavy Machine Gun Light Cannon Rocket Launcher Mining Laser Peak State ------------ > --- POWER ------------ Light Ion Engine Light Deuterium Engine > --- PROPULSION ------- Armored Leg Wheel Compact Wheel Compact Wheel > --- UTILITY ---------- High-capacity Storage Unit Structural Scanner Seismic Detector 0b10 Decoder Chip [Generic] System Shield A0-MCA's Component Scanner Trap Extractor > --- WEAPON ----------- Minigun Heavy Machine Gun > --- INVENTORY -------- Improved Medium Treads Improved Medium Treads Scrap Suit Improved Medium Armor Plating Makeshift Hacking Suite Improved Hacking Suite Scrapoid Pod Assault Rifle High-powered Shotgun Light Cannon Rocket Launcher Mining Laser Vortex Trap Vortex Trap [Rating: 47] Favorites ----------- Power Ion Engine Engine Ion Engine Propulsion Compact Wheel Leg Armored Leg Wheel Compact Wheel Utility High-capacity Storage Unit Device Seismic Detector Storage High-capacity Storage Unit Processor A0-MCA's Component Scanner Hackware System Shield Protection Medium Armor Plating Weapon Assault Rifle Ballistic Gun Assault Rifle Ballistic Cannon Light Cannon Launcher Grenade Launcher Build | -11 -10 -10 -8 -6 ------- Run | Yrd Mat Sub Scr Fac Slots Evolved 8 | . . . . 8 Power 1 | . . . . 1 Propulsion 2 | . . . . 2 Utility 5 | . . . . 5 Weapon . | . . . . . Parts Attached 25 | 9 5 . 4 7 Power 4 | 1 1 . 1 1 Engine 4 | 1 1 . 1 1 Core . | . . . . . Reactor . | . . . . . Propulsion 4 | 3 . . . 1 Treads . | . . . . . Leg 1 | . . . . 1 Wheel 3 | 3 . . . . Hover . | . . . . . Flight . | . . . . . Utility 11 | 3 2 . 1 5 Device 5 | 2 1 . . 2 Storage 2 | 1 1 . . . Processor 2 | . . . 1 1 Hackware 1 | . . . . 1 Protection 1 | . . . . 1 Artifact . | . . . . . Weapon 6 | 2 2 . 2 . Energy Gun . | . . . . . Energy Cannon . | . . . . . Ballistic Gun 4 | 2 . . 2 . Ballistic Cannon 1 | . 1 . . . Launcher 1 | . 1 . . . Special Weapon . | . . . . . Impact Weapon . | . . . . . Slashing Weapon . | . . . . . Piercing Weapon . | . . . . . Special Melee Weapon . | . . . . . Unidentified Prototypes . | . . . . . Parts Lost 10 | . . . . 10 Power 2 | . . . . 2 Propulsion 3 | . . . . 3 Utility 4 | . . . . 4 Weapon 1 | . . . . 1 Highest Loss Streak 9 | . . . . 9 To Critical Strikes . | . . . . . Average Backups 10 | . 6 9 15 11 Power . | . 1 1 1 . Propulsion . | . 1 1 1 . Utility 3 | . 1 2 6 4 Weapon 5 | . 2 5 7 5 Tool/Special . | . . . . . Unused Backups 14 | . . . 4 10 Power . | . . . . . Propulsion 2 | . . . . 2 Utility 6 | . . . 2 4 Weapon 5 | . . . 2 3 Tool/Special 1 | . . . . 1 Average Slot Usage (%) 97 | . 100 100 99 87 Engine 13 | . 14 14 13 11 Wheel 26 | . 28 28 28 17 Device 12 | . 14 14 10 13 Storage 12 | . 14 14 14 6 Processor 3 | . . . 3 12 Ballistic Gun 22 | . 20 28 28 11 Ballistic Cannon 2 | . 7 . . . Peak Build Rating 47 | 9 8 7 28 47 Average Rating 17 | 6 7 7 16 41 On Entrance 9 | . 7 7 7 28 Naked Turns . | . . . . . Heaviest Build 65 | 13 51 50 54 65 Greatest Support 42 | 32 26 26 26 42 Greatest Overweight (x) 16 | . 1 1 2 16 Average Overweight (x) 1 | . . 1 1 1 Largest Inventory Capacity 20 | 8 20 20 20 20 Average Capacity 19 | 7 19 20 20 20 Most Carried 20 | 2 11 9 20 20 Average Carried 12 | . 6 9 17 14 Final Capacity 20 | 8 20 20 20 20 Final Carried 20 | 2 9 9 20 15 Class Distribution -------------------- 83% | Mutant 16% | Hacker-Mutant Dominant Class ---------------- Mutant | -10/Materials Mutant | -10/Subcaves Mutant | -8/Scraptown Hacker-Mutant | -6/Factory Resources | -11 -10 -10 -8 -6 ----------- Run | Yrd Mat Sub Scr Fac Matter Collected 742 | 266 363 . 56 57 Remotely . | . . . . . Salvage Created 608 | 74 422 . 55 57 Parts 35 | 8 23 . 4 . Haulers Intercepted 2 | . 2 . . . Recyclers Shooed . | . . . . . Parts Field Recycled . | . . . . . Retrieved Matter . | . . . . . Parts Self-Destructed . | . . . . . Prevented . | . . . . . Kills | -11 -10 -10 -8 -6 ------- Run | Yrd Mat Sub Scr Fac Combat Hostiles Destroyed 10 | . 8 . 1 1 Guns 8 | . 6 . 1 1 Cannons 2 | . 2 . . . Classes Destroyed 7 | 1 4 . 1 1 Tunneler 3 | 3 . . . . Hauler 2 | . 2 . . . Watcher 3 | . 3 . . . Swarmer 3 | . 3 . . . Grunt 5 | . 5 . . . Sentry 1 | . . . . 1 Guru 1 | . . . 1 . Best Kill Streak 2 | 1 2 . 1 1 Combat Bots Only 2 | . 2 . 1 1 Max Kills in Single Turn 1 | 1 1 . 1 1 Gunslinging . | . . . . . Exploded . | . . . . . Melee . | . . . . . Uniques/NPCs Destroyed . | . . . . . Combat | -11 -10 -10 -8 -6 -------- Run | Yrd Mat Sub Scr Fac Hostile Shots Fired 232 | . 25 . . 207 Missed 71 | . 6 . . 65 Hits 161 | . 19 . . 142 Projectile 161 | . 19 . . 142 Critical Strikes 1 | . . . . 1 Damage Taken 1440 | . 214 . . 1226 Core 233 | . 28 . . 205 Absorbed by Shields . | . . . . . Ignored by Resistances 438 | . 64 . . 374 Regen/Repaired (Parts) 148 | . . . 148 . Core Remaining (%) 94 | 100 . . 88 . Volleys Fired 66 | 8 40 . 2 16 Largest 2 | 2 2 . 2 2 Hottest 55 | 40 50 . 55 55 Shots Fired 121 | 16 69 . 4 32 Gun 97 | 16 45 . 4 32 Cannon 24 | . 24 . . . Launcher . | . . . . . Special . | . . . . . Kinetic 121 | 16 69 . 4 32 Thermal . | . . . . . Explosive . | . . . . . Electromagnetic . | . . . . . Robot Hit Streak 21 | 5 13 . 2 21 Robot Miss Streak 2 | 2 1 . 1 1 Penetration Max . | . . . . . Secondary Targets . | . . . . . Shots Hit Robots 83 | 11 42 . 2 28 Core Hits 26 | 3 17 . 2 4 Critical Kills . | . . . . . Critical Parts Destroyed . | . . . . . Critical Strikes . | . . . . . Melee Attacks . | . . . . . Impact . | . . . . . Slashing . | . . . . . Piercing . | . . . . . Sneak Attacks . | . . . . . Combat Hostiles . | . . . . . Follow-up Attacks . | . . . . . Damage Inflicted 1316 | 140 561 . 83 532 Guns 1175 | 140 422 . 83 530 Cannons 139 | . 139 . . . Explosions . | . . . . . Melee . | . . . . . Ramming 2 | . . . . 2 Kinetic 1314 | 140 561 . 83 530 Thermal . | . . . . . Explosive . | . . . . . Electromagnetic . | . . . . . Impact . | . . . . . Slashing . | . . . . . Piercing . | . . . . . Highest Corruption 1 | . . . . 1 Average Corruption 1 | . . . . 1 Corruption Purged . | . . . . . Corruption Blocked . | . . . . . Overload Shots . | . . . . . Overflow Damage 8 | . 8 . . . Projectiles 8 | . 8 . . . Explosions . | . . . . . Melee . | . . . . . Knockbacks 1 | . 1 . . . Impact . | . . . . . Kinetic 1 | . 1 . . . Secondary . | . . . . . Self-Inflicted Damage 1 | . . . . 1 Shots . | . . . . . Rammed 1 | . . . . 1 Targets Rammed 1 | . . . . 1 Kicked . | . . . . . Crushed . | . . . . . Highest Temperature 61 | . 5 . 16 61 Average Temperature 26 | . 2 . 11 34 Received Heat Transfer 240 | . 96 . . 144 Siege Activations . | . . . . . Martial Activations . | . . . . . Shielding Activations . | . . . . . Robots Disrupted . | . . . . . Combat Hostiles . | . . . . . Robots Corrupted . | . . . . . Combat Hostiles . | . . . . . Parts Fried 1 | . . . 1 . Impact Corruptions . | . . . . . Robots Melted . | . . . . . Combat Hostiles . | . . . . . Parts Melted . | . . . . . Heat Transferred . | . . . . . Parts Sabotaged . | . . . . . Parts Stolen . | . . . . . Parts Stripped . | . . . . . Power Chain Reactions . | . . . . . Alert | -11 -10 -10 -8 -6 ------- Run | Yrd Mat Sub Scr Fac Maximum Alert Level . | . . . . . Low Security (%) 100 | 100 100 . . 100 Level 1 . | . . . . . Level 2 . | . . . . . Level 3 . | . . . . . Level 4 . | . . . . . Level 5 . | . . . . . High Security . | . . . . . Max Security . | . . . . . Peak Influence 55 | 5 55 . . 30 Initial . | . . . . . Average 7 | 1 11 . . 2 Influence Increases 300 | 15 243 . . 42 Destroy 0b10 Robot/C 180 | . 160 . . 20 Destroy 0b10 Robot/NC 40 | 15 25 . . . Destroy Leader 50 | . 40 . . 10 Successful Hack 14 | . 2 . . 12 Destroy Structure 1 | . 1 . . . Lose Combat Pursuer 15 | . 15 . . . Influence Decreases 300 | 15 224 19 . 42 Entered New Map 11 | . . 11 . . Time Decay 287 | 15 224 8 . 40 Lost Part 2 | . . . . 2 Squads Dispatched 1 | . . . . 1 Investigation . | . . . . . Extermination 1 | . . . . 1 Reinforcement . | . . . . . Assault . | . . . . . Garrison . | . . . . . Intercept . | . . . . . Searches Triggered . | . . . . . Construction Impeded . | . . . . . Haulers Reinforced . | . . . . . Active Scanning Responses . | . . . . . Cargo Convoy Interrupts . | . . . . . Stealth | -11 -10 -10 -8 -6 --------- Run | Yrd Mat Sub Scr Fac Distress Signals . | . . . . . Communications Jammed . | . . . . . Distress Signals . | . . . . . Times Spotted 25 | . 19 . 2 4 Peak Tracking Total 3 | . 3 . 2 3 Tactical Retreats 1 | . 1 . . . Traps | -11 -10 -10 -8 -6 ------- Run | Yrd Mat Sub Scr Fac Traps Triggered 2 | . 1 . . 1 Indirectly . | . . . . . Trap Hack Attempts . | . . . . . Triggered . | . . . . . Disarmed . | . . . . . Reprogrammed . | . . . . . Reused . | . . . . . Traps Extracted 1 | . . . . 1 Installed 1 | . . . . 1 Triggered . | . . . . . Most Traps Carried 2 | . . . 2 2 Machines | -11 -10 -10 -8 -6 ---------- Run | Yrd Mat Sub Scr Fac Machines Disabled . | . . . . . Max in Single Turn . | . . . . . Machines Repaired . | . . . . . Machines Dismantled . | . . . . . Machines Sabotaged . | . . . . . Overloaded Fab Kills . | . . . . . Hacking | -11 -10 -10 -8 -6 --------- Run | Yrd Mat Sub Scr Fac Machines Accessed 17 | . 7 . 9 1 Terminals 8 | . 7 . . 1 Fabricators . | . . . . . Repair Stations . | . . . . . Recycling Units . | . . . . . Scanalyzers . | . . . . . Garrison Access . | . . . . . Total Hacks 75 | . 19 . 53 3 Successful 67 | . 13 . 53 1 Failed 8 | . 6 . . 2 Catastrophic . | . . . . . Database Lockouts . | . . . . . Manual 13 | . 12 . . 1 Terminals 22 | . 19 . . 3 Fabricators . | . . . . . Repair Stations . | . . . . . Recycling Units . | . . . . . Scanalyzers . | . . . . . Garrison Access . | . . . . . Terminal Hacks 58 | . 5 . 53 . Record 51 | . . . 51 . Prototype ID Bank 1 | . 1 . . . Open Door 1 | . . . 1 . Emergency Access Points 1 | . 1 . . . Locate Traps 1 | . 1 . . . Hauler Manifests 1 | . 1 . . . Zone Layout 1 | . 1 . . . Proto ID Catalog 1 | . . . 1 . Fabricator Hacks . | . . . . . Repair Station Hacks . | . . . . . Recycling Unit Hacks . | . . . . . Scanalyzer . | . . . . . Garrison Access Hacks . | . . . . . Unauthorized Hacks 9 | . 8 . . 1 Terminals 9 | . 8 . . 1 Botnet 4 | . 3 . . 1 Skim 5 | . 5 . . . Fabricators . | . . . . . Repair Stations . | . . . . . Recycling Units . | . . . . . Scanalyzers . | . . . . . Garrison Access . | . . . . . Data Cores Recovered . | . . . . . Used . | . . . . . Hacking Detections 7 | . 6 . . 1 Full Trace Events . | . . . . . Feedback Events . | . . . . . Feedback Blocked . | . . . . . Robot Schematics Acquired . | . . . . . Robots Built . | . . . . . Authchips . | . . . . . Time . | . . . . . Total Robot Build Rating . | . . . . . Part Schematics Acquired . | . . . . . Parts Built . | . . . . . Authchips . | . . . . . Time . | . . . . . Total Part Build Rating . | . . . . . Parts Repaired . | . . . . . Time . | . . . . . Parts Recycled . | . . . . . Recycled Matter . | . . . . . Retrieved Matter . | . . . . . Retrieved Components . | . . . . . Parts Scanalyzed . | . . . . . Part Schematics Acquired . | . . . . . Parts Damaged . | . . . . . Bothacking | -11 -10 -10 -8 -6 ------------ Run | Yrd Mat Sub Scr Fac Used RIF Installer . | . . . . . Robots Hacked . | . . . . . Non-combat . | . . . . . Combat . | . . . . . Robot Hacks Applied . | . . . . . Relay Couplers Released . | . . . . . Fabnet Peak Effective % . | . . . . . Robots Rewired . | . . . . . Allies Hacked . | . . . . . Hacks Repelled . | . . . . . Allies | -11 -10 -10 -8 -6 -------- Run | Yrd Mat Sub Scr Fac Total Allies . | . . . . . Largest Group . | . . . . . Highest-Rated Group . | . . . . . Highest-Rated Ally . | . . . . . Total Orders . | . . . . . Ally Attacks . | . . . . . Total Damage . | . . . . . Kills . | . . . . . Allies Corrupted . | . . . . . Allies Melted 2 | . . . 2 . Intel | -11 -10 -10 -8 -6 ------- Run | Yrd Mat Sub Scr Fac Active Infowar (turns) 2382 | 76 919 25 933 429 Terrain 21 | 21 . . . . Structural 407 | . . . . 407 Seismic 2305 | 55 919 25 933 373 Decoding 429 | . . . . 429 Robot Analysis Total . | . . . . . Derelict Logs Recovered . | . . . . . Drone Launches . | . . . . . Drone Recoveries . | . . . . . Decoded 0b10 Intel 9 | . . . . 9 Traps 3 | . . . . 3 Items 5 | . . . . 5 Machines 1 | . . . . 1 Exploration | -11 -10 -10 -8 -6 ------------- Run | Yrd Mat Sub Scr Fac Turns Passed 2743 | 118 919 25 1218 463 Spaces Moved 2150 | 84 685 24 1034 323 Core 13 | 7 . . . 6 Treads . | . . . . . Legs . | . . . . . Wheels 2137 | 77 685 24 1034 317 Hover . | . . . . . Flight . | . . . . . Fastest Speed 50 | 50 90 105 105 108 Average Speed 111 | 94 104 105 114 121 Slowest Speed 850 | 100 105 105 120 850 Overloaded Moves . | . . . . . Propulsion Burnouts . | . . . . . Robots Hopped . | . . . . . Potential Cave-ins . | . . . . . Cave-ins Triggered . | . . . . . Exploration Rate (%) 34 | 3 97 4 61 8 Regions Visited 4 Branch Regions 2 Pre-discovered Areas . | . . . . . Known Exits Taken 1 | . 1 . . . Unknown Exits Taken 3 | 1 . 1 1 . Scrap Searched 7 | . . . 7 . Spaces Dug . | . . . . . Terrain Destroyed . | . . . . . Melee . | . . . . . Projectile . | . . . . . AOE . | . . . . . Terrain Rammed . | . . . . . Walls Destroyed . | . . . . . Machines Disabled . | . . . . . Actions | -11 -10 -10 -8 -6 --------- Run | Yrd Mat Sub Scr Fac Total 2373 | 102 819 23 1062 367 Wait 82 | . 79 . 2 1 Move 2146 | 83 684 23 1033 323 Hop . | . . . . . Pick Up 24 | 1 7 . 13 3 Fast Attach 11 | 8 . . 1 2 Attach 8 | . . . . 8 Detach 2 | . . . . 2 Swap 10 | 1 6 . 3 . Drop 13 | 1 3 . 7 2 Fire 66 | 8 40 . 2 16 Melee . | . . . . . Ram 1 | . . . . 1 Kick . | . . . . . Crush . | . . . . . Escape Stasis 8 | . . . . 8 Rewire 1 | . . . 1 . Trap 1 | . . . . 1 Miscellaneous . | . . . . . Route ------- -11/Scrapyard -10/Materials (discovered 6 exits: [*Mat x3] / [*Min x2] / *Sub) -10/Subcaves -8/Scraptown -6/Factory History --------- Turn | Location | Event 43 | -11/Scrapyard | Discovered new exit (range 15) 119 | -11/Scrapyard | Entered Materials 119 | -10/Materials | Discovered new exit (range 7) 306 | -10/Materials | Build established: Mutant 317 | -10/Materials | Discovered new exit (range 4) 535 | -10/Materials | Discovered new exit (range 12) 621 | -10/Materials | Discovered new exit (range 11) 721 | -10/Materials | Learned Materials emergency access door positions 781 | -10/Materials | Learned 2 Mines zone layouts 830 | -10/Materials | Learned Storage trap positions 851 | -10/Materials | Discovered new exit (range 6) 868 | -10/Materials | Loaded intel: 10 trap records 896 | -10/Materials | Identified exit to Subcaves 934 | -10/Materials | Learned location of 1 exit from Storage 983 | -10/Materials | Learned Storage emergency access door positions 1038 | -10/Materials | Entered Subcaves 1039 | -10/Subcaves | Approached by a straggling Scientist 1050 | -10/Subcaves | Scientist uncovered a shortcut to Scraptown 1063 | -10/Subcaves | Entered Scraptown 1319 | -8/Scraptown | Visited UFD Registry 1321 | -8/Scraptown | Registered with UFD as "Matrixshaft" 1337 | -8/Scraptown | Visited IN-MT5's Study 1373 | -8/Scraptown | Visited Shadow of the Wyrm 1410 | -8/Scraptown | Visited Bundlers 1491 | -8/Scraptown | Visited Cyclists 1511 | -8/Scraptown | Entered Cyclist Reading Room 1542 | -8/Scraptown | Visited CR-KLE's Repair Center 1558 | -8/Scraptown | CR-KLE repaired 6 parts 1637 | -8/Scraptown | Visited Scrap Suit Storage 1646 | -8/Scraptown | Found Scrap Suit 1684 | -8/Scraptown | Visited Science Guys 1774 | -8/Scraptown | Visited A0-MCA Data Center 1782 | -8/Scraptown | Given a B rating by A0-MCA 1788 | -8/Scraptown | Found A0-MCA's Component Scanner 1984 | -8/Scraptown | Visited Sword Containment 2035 | -8/Scraptown | Met Optimus 2035 | -8/Scraptown | Accepted into 0bPrime 2110 | -8/Scraptown | Visited Infowarlord's Domain 2145 | -8/Scraptown | Visited Scrapoid Pod Storage 2156 | -8/Scraptown | Found Scrapoid Pod 2172 | -8/Scraptown | Visited Abandonware Association 2191 | -8/Scraptown | Civil war broke out across Scraptown 2276 | -8/Scraptown | Discovered new exit (range 3) 2277 | -8/Scraptown | Lost 8 allies 2281 | -8/Scraptown | Entered Factory 2281 | -6/Factory | Evolved 8 slots: Power x1, Propulsion x2, Utility x5 2601 | -6/Factory | Build established: Hacker-Mutant 2744 | -6/Factory | Self-destructed Last Messages --------------- 02691_ Fabricator disabled. 02692_ Penetrated by Slug. 02693_ Slug penetrates Wall. 02693_ Penetrated by Slug. 02695_ Com. Wheel destroyed. 02697_ Slug penetrates Wall. 02697_ Slug penetrates Terminal. 02701_ Penetrated by Slug. 02701_ Structural Scanner destroyed. 02701_ Penetrated by Slug. 02705_ Slug penetrates Terminal. 02707_ Penetrated by Slug. 02710_ Slug penetrates Wall. 02718_ 0b10 Decoder Chip [Generic] destroyed. 02718_ Slug penetrates Wall. 02718_ Minigun destroyed. 02725_ Slug penetrates Wall. 02733_ Penetrated by Slug. 02733_ Lgt. Deuterium Engine destroyed. 02733_ Penetrated by Slug. Map ----- +----------------------------------------------------+ | ?????????????????????????????????????????????????? | | ?????????????????????????????????????????????????? | | ?????????????????????????????????????????????????? | | ?????????????????????????????????????????????????? | | ?????????????????????????????????????????????????? | | ?????????????????????????????????????????????????? | | ?????????????????????????????????????????????????? | | ?????????????????????????????????????????????????? | | ???????????????????????????##############????????? | | ???????????????????????????##############????????? | | ????????????????????????? # *##????????? | | ????????????????????????? # ##????????? | | ????????????????????????? # """" """" ##????????? | | ????????????????????????? # """ " ##????????? | | ????????????????????????### " ##????????? | | ???????????????????????? # " ##????????? | | ???????????????????????? + ##????????? | | ???????????????????????? # [% = ##????????? | | ???????????????????????## # ##????????? | | ???????????????????????## # " ##????????? | | ???????????????????????## + " ##????????? | | ???????????????????????## # & ######????? | | ????????????????????????# ###"" """"""########???? | | ????????????????????????# ##### "## ##???? | | ???????????????????????## ### # ##???? | | ???????????????????????##@### T" # """ """ ##???? | | ???????????????????????## & " + """ """ ##???? | | ???????????????????????###### # """ """ ##???? | | ???????????????????????###### # ##???? | | ???????????????????????????######## ##???? | | ???????????????????????????# # ##???? | | ????????????????????????????????? ##+#########???? | | ?????????????????????#######????? ## #########???? | | ?????????????????###########??????## ##??????????? | | ?????????????????###### ##??????## #########???? | | ?????????????? ##??? ## #########???? | | ?????????????? #####?## ##???##+## # ##???? | | ?????????????? # ! ?### ###???## + ##???? | | ?????????????? + #### ######## # """ ##???? | | ??????????????## #### ######## # """ ##???? | | ??????????????## + + """ ##???? | | ??????????????## # ############## # #####? | | ??????????????## # ############## ##+###+#####? | | ??????????????## # # # # ##? | | ??????????????## # # # # """ ##? | | ??????????????## # # """ """ # ^ # """ ##? | | ??????????????####### + """ """ # + """ ##? | | ??????????????####### # """ """ # # ##? | | ?????????*?????????## # # #= = ##? | | ???????????????????## # """ """ # #########? | +----------------------------------------------------+ Best States ------------- Heat Dissipation 37 Energy Generation 19 Energy Capacity 250 Matter Stores 300 Matter Capacity 300 Sight Range 16 Terrain Scan Range 16 Terrain Scan Density 10 Armor Coverage 225 Resistance: KI 20 Resistance: TH 20 Resistance: EX 20 Resistance: EM 20 Resistance: I 20 Resistance: S 20 Resistance: P 20 Evasion (%) 42 Offensive Hacking 10 Defensive Hacking 10 Trap Extractor Capacity 4 Item Schematics ----------------- None Robot Schematics ------------------ None Fabricated ------------ Nothing Repaired ---------- Nothing Alien Tech Used ----------------- None Achievements -------------- None Challenges ------------ None Game ------ Seed AluminumShadingWings Manual? 0 Play Time 00:50:48 Cumulative 78.1 hours Start 2025.05.31 @ 00:24:24 End 2025.05.31 @ 01:16:00 Sessions 1 Manual Loads 0 Difficulty Adventurer Special Mode None Game No. 33 Rogue 0 Adventurer 29 Explorer 4 Win Type - Total 1 Types 1/0/0/0/0/0/0/0/0/0 Lore% 24 Gallery% 36 Achievement% 39 Wizard Run 0 Options --------- Layout 0 ASCII 0 Keyboard 1 Movement Numpad Keybinds 0 Fullscreen 1 Font 36/Smallcaps Map View 76x50 Zoom Use 0% Tactical HUD 1 Map Filters NONE Filters NONE Steam 1 RUN: 7485046a-de1c-4ce3-a427-658751ed44c6